[Event "Romanian Superliga 2024"]
[Site "Mamaia"]
[Date "2024.10.03"]
[Round "6.13"]
[White "Kozak, Adam"]
[Black "Lashkin, Jegor"]
[Result "0-1"]
[ECO "D39"]
[WhiteElo "2609"]
[BlackElo "2472"]
[Annotator "TA"]
[PlyCount "76"]
[EventDate "2024.09.26"]
[EventType "team-tourn"]
[EventCountry "ROU"]
[SourceTitle "playchess.com"]
[Source "ChessBase"]
[SourceQuality "1"]
[TimeControl "40/5400+30:1800+30"]

{[%evp 17,76,12,20,6,12,5,13,0,1,0,22,13,15,11,19,23,19,20,39,0,0,0,6,0,0,-28,-18,-10,-17,-37,-20,-114,-118,-220,-219,-414,-413,-387,-235,-307,-314,-383,-378,-380,-387,-355,-225,-208,-176,-533,-523,-740,-743,-739,-726,-674,-616,-29995,-29996,-29996,-29997]} 1. d4 {[%emt 0:06:19]} Nf6 {[%emt 0:00:15]} 2. c4 {[%emt 0:00:23]} e6 {[%emt 0:00:08]} 3. Nf3 {[%emt 0:00:06]} d5 {[%emt 0:00:09]} 4. Nc3 {[%emt 0:00:04]} Bb4 {[%emt 0:00:15]} 5. Bg5 {[%emt 0:00:17]} dxc4 {[%emt 0:00:18]} 6. e4 {[%emt 0:01:14]} h6 {[%emt 0:00:18]} 7. Bxf6 {[%emt 0:00:15]} Qxf6 {[%emt 0:00:07]} 8. Bxc4 {[%emt 0:01:22]} c5 {[%emt 0:00:13]} 9. O-O {[%emt 0:01:28]} O-O {[%emt 0:00:23]} 10. e5 {[%emt 0:02:10]} Qd8 {[%emt 0:00:13]} 11. Qe2 {[%emt 0:04:07]} cxd4 {[%emt 0:01:35]} 12. Ne4 {[%emt 0:00:54] The position is equal.} Be7 {[%emt 0:00:35]} 13. Rfd1 {[%emt 0:00:53]} Qc7 {[%emt 0:03:38]} 14. Rac1 {[%emt 0:01:20][%cal Oe4g3]} Bd7 $1 {[%emt 0:00:15] [#]} 15. Bxe6 $1 {[%emt 0:19:13]} Nc6 {[%emt 0:00:20]} 16. Bd5 {[%emt 0:07:10]} Rad8 {[%emt 0:06:11]} 17. Ng3 {[%emt 0:06:37][%cal Od5c6]} (17. Nxd4 $2 {too greedy.} Nxd4 (17... Qxe5 18. Qb5 $11) 18. Qe3 Nc6 $19 (18... Qxe5 19. Qxd4 Qb8 20. Qc4 $15)) 17... Bg5 {[%emt 0:33:15]} 18. Rc4 {[%emt 0:19:59][%cal Od5c6]} Rfe8 {[%emt 0:09:26]} 19. Qc2 {[%emt 0:19:09]} Qb8 {[%emt 0:26:50]} 20. Ne4 {[%emt 0:00:29]} ({Much weaker is} 20. Nxd4 Nxe5 21. Rb4 Qc8 22. Bxb7 Qb8 $15) 20... d3 {[%emt 0:05:58]} 21. Rxd3 {[%emt 0:06:06]} (21. Qb3 $5 Be6 22. Bxe6 Rxe6 23. Nexg5 hxg5 24. Re4 Nxe5 25. Nxg5 $11) 21... Nxe5 {[%emt 0:01:36]} 22. Nxe5 {[%emt 0:01:12]} Qxe5 {[%emt 0:00:20]} 23. Rc5 {[%emt 0:00:40][%cal Od5f7] Wards off Bb5. Threatens to win with Bxf7+!} Qe7 {[%emt 0:02:45] White must now prevent ...Kh8.} (23... Kh8 {is more complex.} 24. Bxb7 Qb8 25. Rxd7 Rxd7 26. Bc6 Qxb2 27. h4 Qxc2 28. Rxc2 Rxe4 29. Bxd7 Re1+) 24. f3 {[%emt 0:00:17] [#]} (24. Bxb7 Ba4 25. Rxd8 Bxc2 26. Rxe8+ Qxe8) (24. g3 $11) 24... Kh8 $1 $17 {[%emt 0:01:16]} 25. Qc3 {[%emt 0:00:40]} (25. g4 $17 {was worth a try.}) 25... Bf4 $19 {[%emt 0:00:26] And now ...f5 would win.} 26. g3 $2 {[%emt 0:00:31]} (26. Bb3 {might work better.} f5 27. Ng3) 26... Be5 {[%emt 0:00:30] This pair of bishops is nice.} 27. Qc1 {[%emt 0:00:28][%cal Of3f4]} Be6 {[%emt 0:02:19]} 28. Nf2 {[%emt 0:00:36]} b6 {[%emt 0:00:30]} 29. Rb5 {[%emt 0:00:30]} a6 {[%emt 0:00:18]} 30. Bxe6 {[%emt 0:00:30]} axb5 {[%emt 0:00:07]} 31. Bd5 {[%emt 0:00:05]} Qc5 {[%emt 0:00:45]} 32. Qd2 {[%emt 0:00:50]} Bxb2 {[%emt 0:00:56] aiming for ...Bc1.} 33. Kg2 $2 {[%emt 0:00:01] [#]} (33. Bxf7 {nothing else works.} Rxd3 34. Qxd3) 33... Bc3 $1 {[%emt 0:00:44][%mdl 512]} 34. Qd1 {[%emt 0:00:20][%cal Of2e4]} (34. Rxc3 Qxd5) 34... Re1 {[%emt 0:00:35]} 35. Qc2 {[%emt 0:00:01]} Bd4 {[%emt 0:00:25]} 36. Qd2 {[%emt 0:01:03]} Bxf2 {[%emt 0:00:11]} 37. Bxf7 {[%emt 0:00:18]} Rg1+ {[%emt 0:00:06]} 38. Kh3 {[%emt 0:00:04]} Qf5+ {[%emt 0:00:05] Weighted Error Value: White=0.65/Black=0.10 (very precise) .  Mistake:       	White=4     	---        Inaccurate:     	White=4     	Black=2      OK:         	White=11    	Black=12     Best:        	White=1     	Black=3      Strong:       	---       	Black=2} 0-1

[Event "Romanian Superliga 2024"]
[Site "Mamaia"]
[Date "2024.10.03"]
[Round "6.14"]
[White "Ogleznev, Alexandr"]
[Black "Tarlev, Konstantin"]
[Result "1/2-1/2"]
[ECO "B51"]
[WhiteElo "2301"]
[BlackElo "2579"]
[Annotator "TA"]
[PlyCount "58"]
[EventDate "2024.09.26"]
[EventType "team-tourn"]
[EventCountry "ROU"]
[SourceTitle "playchess.com"]
[Source "ChessBase"]
[SourceQuality "1"]
[TimeControl "40/5400+30:1800+30"]

{[%evp 16,58,24,27,42,35,24,42,40,31,37,51,56,50,58,54,56,66,62,56,57,65,62,53,103,104,120,105,106,0,16,17,89,79,96,133,109,0,90,0,-10,-10,0,0,0]} 1. e4 {[%emt 0:00:04]} c5 {[%emt 0:01:39]} 2. Nf3 {[%emt 0:00:08]} d6 {[%emt 0:00:04]} 3. Bb5+ {[%emt 0:00:20]} Nc6 {[%emt 0:00:05]} 4. O-O {[%emt 0:00:38]} Bd7 {[%emt 0:00:44]} 5. Re1 {[%emt 0:01:01]} Nf6 {[%emt 0:00:29]} 6. c3 {[%emt 0:00:27][%cal Bc2c3,Bc3d4,Bd4d5][%mdl 32]} a6 {[%emt 0:00:03]} 7. Bf1 {[%emt 0:00:06]} Bg4 {[%emt 0:00:21]} 8. d4 {[%emt 0:00:19]} cxd4 {[%emt 0:20:42]} 9. cxd4 {[%emt 0:00:11]} e5 {[%emt 0:00:07]} 10. d5 {[%emt 0:00:16]} Nd4 {[%emt 0:00:02]} 11. Be3 {[%emt 0:00:09]} Nxf3+ {[%emt 0:01:31] White is slightly better.} 12. gxf3 {[%emt 0:00:20]} Bd7 {[%emt 0:00:02]} 13. Nd2 {[%emt 0:00:38]} Be7 {[%emt 0:00:27]} 14. Nc4 {[%emt 0:02:25]} b5 {[%emt 0:00:59]} 15. Nb6 {[%emt 0:08:31]} Rb8 {[%emt 0:00:11]} 16. Nxd7 {[%emt 0:00:09]} Nxd7 {[%emt 0:00:03]} 17. Rc1 {[%emt 0:24:18]} Bg5 {[%emt 0:06:28]} 18. Rc6 {[%emt 0:00:14]} Bxe3 {[%emt 0:06:22]} 19. Rxe3 {[%emt 0:07:37]} Nb6 {[%emt 0:06:07]} (19... Nf8 $14) 20. Ra3 $16 {[%emt 0:11:21]} Ra8 {[%emt 0:38:20]} 21. Qd2 {[%emt 0:07:05][%cal Oa3a6]} O-O {[%emt 0:00:11] [#]} 22. Qb4 {[%emt 0:03:58] White has more active pieces.} (22. f4 $1 $16) 22... Qg5+ {[%emt 0:01:45]} 23. Kh1 {[%emt 0:00:28][%cal Ob4e1]} Nc8 {[%emt 0:13:24]} (23... g6 $11 {keeps the balance.}) 24. Raxa6 {[%emt 0:08:06]} Ne7 {[%emt 0:01:35]} 25. Rxa8 {[%emt 0:08:22]} (25. Rxd6 $6 Rac8 $11) 25... Rxa8 {[%emt 0:00:02] [#]} 26. Rc7 {[%emt 0:01:33]} (26. Rxd6 $6 h6 $11) (26. Qxb5 $1 $16 Nxc6 (26... Rxa2 27. Rc8+ Nxc8 28. Qe8#) 27. dxc6) 26... Qf6 {[%emt 0:01:04]} (26... Qf4 $1 $11 {remains equal.} 27. Qxb5 (27. Rxe7 Qxf3+ 28. Kg1 Kf8 $11) 27... Ng6) 27. Qc3 {[%emt 0:05:48]} (27. Bxb5 $2 {loses.} Qxf3+ 28. Kg1 Qg4+ 29. Kf1 Nxd5 $19) (27. Qxb5 $16 {Black must now prevent a4.} h6 (27... Qxf3+ 28. Bg2 $11) 28. a4) 27... b4 $11 {[%emt 0:00:13] The position is equal.} 28. Qb3 {[%emt 0:01:38]} h5 {[%emt 0:00:37]} 29. Rc4 {[%emt 0:00:59]} (29. Qxb4 $2 {perishes.} Qxf3+ 30. Kg1 Qg4+ 31. Kh1 Nxd5 32. Qxd6 Nxc7 (32... Qxe4+ $2 33. Kg1 $19) 33. Qxc7 Qxe4+ (33... Rxa2 $2 34. Qc2 $19) 34. Kg1 Rxa2 35. Qc8+ Kh7 $19) 29... Rxa2 {[%emt 0:00:47] Weighted Error Value: White=0.21 (precise) /Black=0.19 (very precise) .  Mistake:       	White=3     	Black=3      OK:         	White=9     	Black=6      Best:        	White=4     	Black=1} 1/2-1/2

[Event "Romanian Superliga 2024"]
[Site "Mamaia"]
[Date "2024.10.03"]
[Round "6.15"]
[White "Serban, Cristian-Stefan"]
[Black "Vavric, Pavel"]
[Result "1-0"]
[ECO "D30"]
[WhiteElo "2269"]
[BlackElo "2285"]
[Annotator "RC"]
[PlyCount "127"]
[EventDate "2024.09.26"]
[EventType "team-tourn"]
[EventCountry "ROU"]
[SourceTitle "playchess.com"]
[Source "ChessBase"]
[SourceQuality "1"]
[TimeControl "40/5400+30:1800+30"]

1. c4 {[%emt 0:01:30]} c5 {[%emt 0:01:10]} 2. g3 {[%emt 0:00:09]} Nf6 {[%emt 0:01:50]} 3. Bg2 {[%emt 0:00:08]} e6 {[%emt 0:00:27]} 4. Nf3 {[%emt 0:00:44]} d5 {[%emt 0:01:46]} 5. cxd5 {[%emt 0:00:08]} exd5 {[%emt 0:00:42]} 6. d4 {[%emt 0:00:07]} Nc6 {[%emt 0:00:05]} 7. O-O {[%emt 0:00:15]} Be7 {[%emt 0:05:28]} 8. dxc5 {[%emt 0:00:08]} Bxc5 {[%emt 0:00:04]} 9. Bg5 {[%emt 0:00:05]} Be6 {[%emt 0:00:13]} 10. Qc1 {[%emt 0:00:32]} Bb6 {[%emt 0:09:59]} 11. Qf4 {[%emt 0:02:00]} h6 {[%emt 0:11:56]} 12. Bxf6 {[%emt 0:00:14]} Qxf6 {[%emt 0:00:14]} 13. Qxf6 {[%emt 0:00:05]} gxf6 {[%emt 0:00:04]} 14. Nc3 {[%emt 0:00:21]} Ke7 {[%emt 0:00:41]} 15. Rfd1 {[%emt 0:12:08]} Rhd8 {[%emt 0:01:47]} 16. Na4 {[%emt 0:00:51]} d4 {[%emt 0:14:59]} 17. Ne1 {[%emt 0:03:25]} Rac8 {[%emt 0:04:45]} 18. Nd3 {[%emt 0:02:02]} Rc7 {[%emt 0:06:33]} 19. Nxb6 {[%emt 0:16:42]} axb6 {[%emt 0:00:07]} 20. Nf4 {[%emt 0:00:59]} Ne5 {[%emt 0:08:08]} 21. b3 {[%emt 0:01:07]} Ng6 {[%emt 0:02:17]} 22. Nd3 {[%emt 0:02:31]} Ne5 {[%emt 0:04:02]} 23. Nb4 {[%emt 0:00:58]} Rd6 {[%emt 0:05:00]} 24. Rd2 {[%emt 0:06:49]} Rcd7 {[%emt 0:06:07]} 25. Rad1 {[%emt 0:11:44]} Bf5 {[%emt 0:01:33]} 26. e4 {[%emt 0:07:40]} dxe3 {[%emt 0:03:03]} 27. Rxd6 {[%emt 0:00:09]} Rxd6 {[%emt 0:00:06]} 28. Nd5+ {[%emt 0:00:07]} Kd8 {[%emt 0:04:55]} 29. Nxe3 {[%emt 0:02:08]} Rxd1+ {[%emt 0:00:05]} 30. Nxd1 {[%emt 0:00:03]} Kc7 {[%emt 0:01:57]} 31. Nc3 {[%emt 0:00:06]} Be6 {[%emt 0:00:06]} 32. f4 {[%emt 0:03:43]} Nd3 {[%emt 0:01:44]} 33. Kf1 {[%emt 0:00:37]} Nc5 {[%emt 0:01:40]} 34. Ke2 {[%emt 0:01:06]} Nd7 {[%emt 0:01:49]} 35. Ke3 {[%emt 0:01:04]} Nc5 {[%emt 0:00:33]} 36. b4 {[%emt 0:00:32]} Na6 {[%emt 0:00:45]} 37. a3 {[%emt 0:00:05]} Kc8 {[%emt 0:00:24]} 38. Nd5 {[%emt 0:07:56]} Bxd5 {[%emt 0:00:57]} 39. Bxd5 {[%emt 0:00:06]} Nc7 {[%emt 0:00:14]} 40. Bxf7 {[%emt 0:00:00]} Nb5 {[%emt 0:00:00]} 41. Bc4 {[%emt 0:02:01]} Nd6 {[%emt 0:05:12]} 42. Bd3 {[%emt 0:01:16]} Kd7 {[%emt 0:00:08]} 43. g4 {[%emt 0:01:42]} Ke6 {[%emt 0:03:29]} 44. h4 {[%emt 0:01:55]} Kd5 {[%emt 0:00:48]} 45. g5 {[%emt 0:01:51]} fxg5 {[%emt 0:00:08]} 46. fxg5 {[%emt 0:00:05]} hxg5 {[%emt 0:00:09]} 47. hxg5 {[%emt 0:00:05]} Ke5 {[%emt 0:01:03]} 48. g6 {[%emt 0:00:26]} Ne8 {[%emt 0:00:41]} 49. Be4 {[%emt 0:00:50]} Kf6 {[%emt 0:00:09]} 50. Kd4 {[%emt 0:02:30]} Nc7 {[%emt 0:01:44]} 51. Bd3 {[%emt 0:00:55]} Ne6+ {[%emt 0:00:11]} 52. Kd5 {[%emt 0:02:10]} Nf4+ {[%emt 0:00:26]} 53. Kc4 {[%emt 0:00:08]} b5+ {[%emt 0:02:40]} 54. Kd4 {[%emt 0:11:51]} Ne6+ {[%emt 0:00:11]} 55. Ke3 {[%emt 0:00:05]} Nc7 {[%emt 0:06:26]} 56. Ke4 {[%emt 0:04:34]} b6 {[%emt 0:04:57]} 57. g7 {[%emt 0:00:56]} Kxg7 {[%emt 0:00:08]} 58. Ke5 {[%emt 0:00:02]} Kf7 {[%emt 0:00:27]} 59. Kd6 {[%emt 0:00:05]} Ne6 {[%emt 0:00:08]} 60. Bxb5 {[%emt 0:01:20]} Nd4 {[%emt 0:00:07]} 61. Bd3 {[%emt 0:01:06]} Ke8 {[%emt 0:00:15]} 62. Kc7 {[%emt 0:02:39]} b5 {[%emt 0:01:11]} 63. Kb6 {[%emt 0:00:08]} Kd8 {[%emt 0:00:07]} 64. Kc5 {[%emt 0:00:09]} 1-0

[Event "Romanian Superliga 2024"]
[Site "Mamaia"]
[Date "2024.10.03"]
[Round "6.16"]
[White "Sachilaru, Alexandru"]
[Black "Tampea, Radu"]
[Result "1-0"]
[ECO "B29"]
[WhiteElo "2265"]
[BlackElo "2226"]
[Annotator "RC"]
[PlyCount "61"]
[EventDate "2024.09.26"]
[EventType "team-tourn"]
[EventCountry "ROU"]
[SourceTitle "playchess.com"]
[Source "ChessBase"]
[SourceQuality "1"]
[TimeControl "40/5400+30:1800+30"]

1. e4 {[%emt 0:00:04]} c5 {[%emt 0:01:21]} 2. Nf3 {[%emt 0:00:10]} Nf6 {[%emt 0:00:23]} 3. Nc3 {[%emt 0:07:12]} d5 {[%emt 0:03:08]} 4. e5 {[%emt 0:06:01]} Nfd7 {[%emt 0:00:06]} 5. Nxd5 {[%emt 0:03:04]} Nxe5 {[%emt 0:00:47]} 6. Nxe5 {[%emt 0:16:24]} Qxd5 {[%emt 0:02:37]} 7. Nf3 {[%emt 0:02:24]} Nc6 {[%emt 0:06:41]} 8. Be2 {[%emt 0:00:35]} e5 {[%emt 0:01:03]} 9. O-O {[%emt 0:02:25]} Be7 {[%emt 0:05:41]} 10. d3 {[%emt 0:04:03]} O-O {[%emt 0:05:30]} 11. Re1 {[%emt 0:07:40]} b6 {[%emt 0:03:12]} 12. b3 {[%emt 0:00:49]} Bb7 {[%emt 0:00:46]} 13. Bb2 {[%emt 0:00:23]} Kh8 {[%emt 0:08:05]} 14. Bf1 {[%emt 0:03:40]} f6 {[%emt 0:03:05]} 15. Nh4 {[%emt 0:06:37]} f5 {[%emt 0:24:52]} 16. Qh5 {[%emt 0:01:30]} Bxh4 {[%emt 0:00:05]} 17. Qxh4 {[%emt 0:00:19]} Rae8 {[%emt 0:00:05]} 18. f4 {[%emt 0:05:31]} Nd4 {[%emt 0:00:38]} 19. c4 {[%emt 0:02:10]} Qd7 {[%emt 0:25:27]} 20. Rxe5 {[%emt 0:15:11]} Rxe5 {[%emt 0:00:01]} 21. fxe5 {[%emt 0:00:04]} f4 {[%emt 0:00:06]} 22. Qf2 {[%emt 0:00:40]} f3 {[%emt 0:00:27]} 23. Bxd4 {[%emt 0:00:38]} cxd4 {[%emt 0:00:01]} 24. Re1 {[%emt 0:00:47]} Qe6 {[%emt 0:00:50]} 25. Be2 {[%emt 0:03:46]} g5 {[%emt 0:04:07]} 26. Bxf3 {[%emt 0:00:58]} g4 {[%emt 0:02:11]} 27. Bxg4 {[%emt 0:00:56]} Qg8 {[%emt 0:02:13]} 28. Qxd4 {[%emt 0:01:39]} Rd8 {[%emt 0:00:06]} 29. Qf4 {[%emt 0:00:08]} Rf8 {[%emt 0:00:18]} 30. Qg3 {[%emt 0:00:13]} Qg7 {[%emt 0:00:26]} 31. Bf3 {[%emt 0:00:52]} 1-0

[Event "Romanian Superliga 2024"]
[Site "Mamaia"]
[Date "2024.10.03"]
[Round "6.17"]
[White "Padurariu, Mihai-Edward"]
[Black "Patrascu, Catalin-Lucian"]
[Result "0-1"]
[ECO "B52"]
[WhiteElo "2233"]
[BlackElo "2298"]
[Annotator "RC"]
[PlyCount "104"]
[EventDate "2024.09.26"]
[EventType "team-tourn"]
[EventCountry "ROU"]
[SourceTitle "playchess.com"]
[Source "ChessBase"]
[SourceQuality "1"]
[TimeControl "40/5400+30:1800+30"]

1. e4 {[%emt 0:00:40]} c5 {[%emt 0:00:12]} 2. Nf3 {[%emt 0:00:16]} d6 {[%emt 0:00:17]} 3. Bb5+ {[%emt 0:00:36]} Bd7 {[%emt 0:01:37]} 4. Bxd7+ {[%emt 0:00:34]} Qxd7 {[%emt 0:00:06]} 5. O-O {[%emt 0:00:12]} Nc6 {[%emt 0:02:04]} 6. c3 {[%emt 0:00:57]} Nf6 {[%emt 0:00:50]} 7. d4 {[%emt 0:01:54]} cxd4 {[%emt 0:10:05]} 8. cxd4 {[%emt 0:01:38]} d5 {[%emt 0:00:31]} 9. e5 {[%emt 0:03:19]} Ne4 {[%emt 0:10:42]} 10. Ne1 {[%emt 0:06:48]} f6 {[%emt 0:04:23]} 11. f3 {[%emt 0:10:21]} Ng5 {[%emt 0:00:34]} 12. Bxg5 {[%emt 0:07:25]} fxg5 {[%emt 0:00:12]} 13. f4 {[%emt 0:03:58]} Qf5 {[%emt 0:19:14]} 14. fxg5 {[%emt 0:19:57]} Qxg5 {[%emt 0:00:36]} 15. Qd3 {[%emt 0:09:40]} e6 {[%emt 0:05:31]} 16. Nc3 {[%emt 0:01:55]} Bb4 {[%emt 0:17:32]} 17. Nc2 {[%emt 0:05:19]} Bxc3 {[%emt 0:10:11]} 18. Qxc3 {[%emt 0:05:27]} Rf8 {[%emt 0:05:15]} 19. b4 {[%emt 0:08:27]} Rc8 {[%emt 0:01:39]} 20. Na3 {[%emt 0:08:00]} Ne7 {[%emt 0:03:00]} 21. Qd3 {[%emt 0:01:09]} Rxf1+ {[%emt 0:01:21]} 22. Rxf1 {[%emt 0:00:15]} Rc1 {[%emt 0:01:26]} 23. Nc2 {[%emt 0:02:29]} Nf5 {[%emt 0:02:55]} 24. Qb5+ {[%emt 0:00:34]} Kf8 {[%emt 0:00:18]} 25. Qd3 {[%emt 0:00:34]} Rxf1+ {[%emt 0:00:32]} 26. Kxf1 {[%emt 0:00:25]} Qc1+ {[%emt 0:00:21]} 27. Kf2 {[%emt 0:00:27]} h5 {[%emt 0:00:49]} 28. Qc3 {[%emt 0:00:24]} Kg8 {[%emt 0:00:29]} 29. Qd3 {[%emt 0:00:32]} a6 {[%emt 0:00:17]} 30. a3 {[%emt 0:00:34]} Qf4+ {[%emt 0:00:46]} 31. Kg1 {[%emt 0:00:08]} b5 {[%emt 0:00:39]} 32. Qd1 {[%emt 0:01:01]} h4 {[%emt 0:01:12]} 33. h3 {[%emt 0:00:30]} Ng3 {[%emt 0:00:34]} 34. Qe1 {[%emt 0:00:31]} Kh7 {[%emt 0:00:33]} 35. Qd1 {[%emt 0:00:31]} Kh6 {[%emt 0:00:27]} 36. Qe1 {[%emt 0:00:22]} Kg5 {[%emt 0:00:36]} 37. Qd1 {[%emt 0:00:22]} g6 {[%emt 0:00:26]} 38. Qe1 {[%emt 0:00:34]} Nf5 {[%emt 0:00:29]} 39. Qd1 {[%emt 0:00:37]} Kh6 {[%emt 0:00:29]} 40. Qd3 {[%emt 0:00:00]} Qc1+ {[%emt 0:00:00]} 41. Kf2 {[%emt 0:01:56]} Kg5 {[%emt 0:12:08]} 42. Ne1 {[%emt 0:19:43]} Qb2+ {[%emt 0:01:10]} 43. Kf1 {[%emt 0:00:17]} Ng3+ {[%emt 0:03:19]} 44. Kg1 {[%emt 0:00:06]} Qxd4+ {[%emt 0:01:12]} 45. Qxd4 {[%emt 0:00:04]} Ne2+ {[%emt 0:00:04]} 46. Kf2 {[%emt 0:00:04]} Nxd4 {[%emt 0:00:03]} 47. Ke3 {[%emt 0:00:50]} Nf5+ {[%emt 0:00:17]} 48. Kf3 {[%emt 0:00:23]} Ne7 {[%emt 0:00:40]} 49. Nd3 {[%emt 0:00:40]} Nc6 {[%emt 0:00:48]} 50. Ke2 {[%emt 0:01:33]} Kf5 {[%emt 0:00:11]} 51. Nc5 {[%emt 0:00:19]} a5 {[%emt 0:02:07]} 52. a4 {[%emt 0:06:46]} Kxe5 {[%emt 0:15:21]} 0-1

[Event "Romanian Superliga 2024"]
[Site "Mamaia"]
[Date "2024.10.03"]
[Round "6.18"]
[White "Popescu, Daniel-Vasilica"]
[Black "Radu, David Cr."]
[Result "0-1"]
[ECO "B60"]
[WhiteElo "1953"]
[BlackElo "2159"]
[Annotator "RC"]
[PlyCount "72"]
[EventDate "2024.09.26"]
[EventType "team-tourn"]
[EventCountry "ROU"]
[SourceTitle "playchess.com"]
[Source "ChessBase"]
[SourceQuality "1"]
[TimeControl "40/5400+30:1800+30"]

1. e4 {[%emt 0:00:04]} c5 {[%emt 0:00:34]} 2. Nf3 {[%emt 0:00:05]} Nc6 {[%emt 0:00:07]} 3. d4 {[%emt 0:00:40]} cxd4 {[%emt 0:00:10]} 4. Nxd4 {[%emt 0:00:06]} Nf6 {[%emt 0:00:19]} 5. Nc3 {[%emt 0:00:13]} d6 {[%emt 0:00:49]} 6. Bg5 {[%emt 0:01:27]} a6 {[%emt 0:00:54]} 7. Nxc6 {[%emt 0:01:20]} bxc6 {[%emt 0:00:07]} 8. Bc4 {[%emt 0:00:29]} e6 {[%emt 0:06:26]} 9. Qd3 {[%emt 0:03:13]} Qa5 {[%emt 0:10:55]} 10. f4 {[%emt 0:23:10]} d5 {[%emt 0:19:05]} 11. Bxf6 {[%emt 0:01:06]} gxf6 {[%emt 0:00:34]} 12. exd5 {[%emt 0:00:32]} cxd5 {[%emt 0:01:05]} 13. Bxd5 {[%emt 0:22:33]} exd5 {[%emt 0:02:44]} 14. O-O-O {[%emt 0:00:28]} Bg7 {[%emt 0:14:11]} 15. Rhe1+ {[%emt 0:01:00]} Kf8 {[%emt 0:00:13]} 16. Nxd5 {[%emt 0:09:19]} Bg4 {[%emt 0:11:25]} 17. Rd2 {[%emt 0:04:45]} h5 {[%emt 0:00:24]} 18. Ne7 {[%emt 0:10:55]} Bh6 {[%emt 0:06:54]} 19. Qd4 {[%emt 0:08:01]} Qxa2 {[%emt 0:05:00]} 20. Rd3 {[%emt 0:05:13]} Qa1+ {[%emt 0:06:12]} 21. Kd2 {[%emt 0:00:01]} Qa5+ {[%emt 0:00:09]} 22. b4 {[%emt 0:00:15]} Qc7 {[%emt 0:00:11]} 23. Nd5 {[%emt 0:00:19]} Qd6 {[%emt 0:00:45]} 24. c4 {[%emt 0:03:28]} Rd8 {[%emt 0:03:35]} 25. c5 {[%emt 0:02:45]} Qc6 {[%emt 0:00:19]} 26. Kc3 {[%emt 0:00:58]} Be6 {[%emt 0:04:25]} 27. Rxe6 {[%emt 0:01:02]} Qxe6 {[%emt 0:00:02]} 28. g3 {[%emt 0:00:30]} Bg7 {[%emt 0:01:07]} 29. f5 {[%emt 0:00:28]} Qxf5 {[%emt 0:01:14]} 30. Ne3 {[%emt 0:00:27]} Qxd3+ {[%emt 0:00:23]} 31. Qxd3 {[%emt 0:00:04]} f5+ {[%emt 0:00:05]} 32. Kc4 {[%emt 0:00:15]} Rxd3 {[%emt 0:00:01]} 33. Kxd3 {[%emt 0:00:13]} Ke8 {[%emt 0:01:07]} 34. Nxf5 {[%emt 0:00:08]} Bb2 {[%emt 0:00:59]} 35. Kc4 {[%emt 0:00:18]} Kd7 {[%emt 0:00:08]} 36. Nd6 {[%emt 0:00:24]} Ke6 {[%emt 0:00:32]} 0-1

[Event "Romanian Superliga 2024"]
[Site "Mamaia"]
[Date "2024.10.03"]
[Round "6.19"]
[White "Motylev, Alexander"]
[Black "Baranciuc, Alexandr"]
[Result "1-0"]
[ECO "C71"]
[WhiteElo "2582"]
[BlackElo "2333"]
[Annotator "TA"]
[PlyCount "43"]
[EventDate "2024.09.26"]
[EventType "team-tourn"]
[EventCountry "ROU"]
[SourceTitle "playchess.com"]
[Source "ChessBase"]
[SourceQuality "1"]
[TimeControl "40/5400+30:1800+30"]

{[%evp 9,43,10,26,24,33,42,47,38,55,47,66,63,69,35,60,84,100,101,132,114,114,105,116,104,183,178,265,166,482,284,278,235,243,237,264,259]} 1. e4 {[%emt 0:02:10]} e5 {[%emt 0:00:21]} 2. Nf3 {[%emt 0:00:12]} Nc6 {[%emt 0:00:06]} 3. Bb5 {[%emt 0:00:05]} a6 {[%emt 0:00:23]} 4. Ba4 {[%emt 0:00:06]} d6 {[%emt 0:00:09]} 5. Nc3 {[%emt 0:00:21]} Bd7 {[%emt 0:00:35]} 6. Bxc6 {[%emt 0:00:25]} bxc6 {[%emt 0:00:28]} 7. d4 {[%emt 0:00:06]} exd4 {[%emt 0:00:18]} 8. Qxd4 {[%emt 0:00:05] White is slightly better.} c5 {[%emt 0:03:13]} 9. Qd3 {[%emt 0:00:37]} Nf6 {[%emt 0:02:54]} 10. Bf4 {[%emt 0:02:09]} Be7 {[%emt 0:01:40]} 11. O-O-O {[%emt 0:01:39]} O-O {[%emt 0:06:40]} 12. e5 {[%emt 0:02:41]} dxe5 {[%emt 0:02:32]} 13. Nxe5 {[%emt 0:12:56]} Be6 {[%emt 0:18:44]} 14. Nc6 {[%emt 0:05:20] White has more active pieces. A dynamic duo of knights.} Qe8 {[%emt 0:00:05] Black is weak on the dark squares} 15. Nxe7+ {[%emt 0:00:16]} Qxe7 {[%emt 0:00:01]} 16. Qg3 $36 {[%emt 0:00:34][%mdl 2048] White is in control.} Rac8 {[%emt 0:07:24]} (16... Nh5 $16 {is a better defense.} 17. Qg5 Qxg5 18. Bxg5 Rfe8) 17. Bg5 $18 {[%emt 0:11:28][%cal Bf4g5,Bg5e7,Be7f8,Bf8d6][%mdl 32]} c4 {[%emt 0:10:02]} (17... Rfd8 $142 18. f3 Rxd1+ 19. Rxd1 Rd8) 18. Rhe1 {[%emt 0:04:56]} c6 $2 {[%emt 0:10:29] [#]} (18... Rfd8 19. Nd5 Rxd5 20. Rxd5 c3) 19. Ne4 {[%emt 0:01:28]} (19. f4 $142) 19... Nxe4 {[%emt 0:00:06]} 20. Bxe7 {[%emt 0:02:52]} Nxg3 {[%emt 0:00:05]} 21. Bxf8 {[%emt 0:00:19]} (21. fxg3 Rfe8 22. Bb4 Bd5 $17) 21... Nh5 {[%emt 0:00:36]} 22. Bd6 {[%emt 0:05:22] Weighted Error Value: White=0.33/Black=0.39.  Mistake:       	White=1     	Black=3      Inaccurate:     	White=2     	Black=1      OK:         	White=7     	Black=3      Best:        	---       	Black=1} 1-0